fUST/lending_fUST_20260524
["ID","MTS","AMOUNT","RATE_DAILY","PERIOD"]
[422919099,1779625846000,-3000.0,0.00016,2]
[422919120,1779625846000,-150.66,0.000161,2]
[422919121,1779625846000,-150.66,0.000161,2]
[422919100,1779625846000,-151.394425,0.00016,2]
[422919118,1779625846000,-3000.0,0.0001609,2]
[422919119,1779625846000,-151.54,0.000161,2]
[422919113,1779625846000,-3000.0,0.0001604,2]
[422919111,1779625846000,-503.88071408,0.00016031,2]
[422919115,1779625846000,-3000.0,0.0001606,2]
[422919122,1779625846000,-151.6,0.000161,2]
[422919116,1779625846000,-3000.0,0.0001607,2]
[422919107,1779625846000,-556.86559248,0.00016016,2]
[422919117,1779625846000,-3000.0,0.0001608,2]
[422919112,1779625846000,-166.715747,0.00016033,2]
[422919110,1779625846000,-3000.0,0.0001603,2]
[422919108,1779625846000,-3000.0,0.0001602,2]
[422919106,1779625846000,-3000.0,0.0001601,2]
[422919114,1779625846000,-3000.0,0.0001605,2]
[422919137,1779625847000,-150.66,0.000162,2]
[422919135,1779625847000,-3000.0,0.0001619,2]
[422919133,1779625847000,-3000.0,0.0001618,2]
[422919130,1779625847000,-3000.0,0.0001615,2]
[422919129,1779625847000,-3000.0,0.0001614,2]
[422919128,1779625847000,-3000.0,0.0001613,2]
[422919126,1779625847000,-3000.0,0.0001611,2]
[422919127,1779625847000,-3000.0,0.0001612,2]
[422919125,1779625847000,-307.65162494,0.000161,2]
[422919124,1779625847000,-3000.0,0.000161,2]
[422919123,1779625847000,-150.98,0.000161,2]
[422919134,1779625847000,-165.628205,0.0001619,2]
[422919131,1779625847000,-3000.0,0.0001616,2]
[422919132,1779625847000,-3000.0,0.0001617,2]
[422919142,1779625847000,-1887.04325534,0.0001622,2]
[422919138,1779625847000,-151.31,0.000162,2]
[422919150,1779625847000,-2452.81475839,0.0001626,2]
[422919151,1779625847000,-3000.0,0.0001627,2]
[422919146,1779625847000,-500.0,0.00016234,2]
[422919147,1779625847000,-3000.0,0.0001624,2]
[422919148,1779625847000,-3000.0,0.0001625,2]
[422919149,1779625847000,-547.18524161,0.0001626,2]
[422919136,1779625847000,-391.763324,0.00016199,2]
[422919143,1779625847000,-1112.95674466,0.0001622,2]
[422919144,1779625847000,-3000.0,0.0001623,2]
[422919141,1779625847000,-3000.0,0.0001621,2]
[422919140,1779625847000,-307.65162494,0.000162,2]
[422919139,1779625847000,-3000.0,0.000162,2]
[422919145,1779625847000,-697.59394473,0.00016232,2]
[422919153,1779625848000,-3000.0,0.0001629,2]
[422919157,1779625848000,-3000.0,0.000163,2]
[422919158,1779625848000,-1825.85290461,0.0001631,2]
[422919152,1779625848000,-3000.0,0.0001628,2]
[422919156,1779625848000,-150.66,0.000163,2]
[422919154,1779625848000,-151.54,0.000163,2]
[422919155,1779625848000,-150.66,0.000163,2]
[422919160,1779626063000,-152.0,0.00013395,7]
[422919161,1779626116000,-152.0,0.00013395,7]
[422919162,1779626170000,-1890.48215824,0.00013411,2]
[422919163,1779626190000,-939.79907109,0.00013411,2]
[422919164,1779626211000,-500.0,0.00013411,2]
[422919165,1779626562000,-5000.0,0.00013411,2]
[422919166,1779626563000,779.37,0.00015,30]
[422919168,1779626828000,-300.0,0.0001341,2]
[422919169,1779626828000,-300.0,0.0001341,2]
[422919170,1779626828000,-47.15539548,0.0001341,2]
[422919172,1779626837000,-34.78998386,0.0001341,2]
[422919171,1779626837000,-252.84460452,0.0001341,2]
[422919398,1779627038000,-5000.0,0.00013276,2]
[422919430,1779627038000,-500.0,0.00015383,2]
[422919429,1779627038000,-500.0,0.00015383,2]
[422919427,1779627038000,-500.0,0.00015383,2]
[422919425,1779627038000,-500.0,0.00015383,2]
[422919433,1779627038000,-500.0,0.00015383,2]
[422919426,1779627038000,-650.0,0.00015383,2]
[422919423,1779627038000,-500.0,0.00015383,2]
[422919422,1779627038000,-500.0,0.00015383,2]
[422919420,1779627038000,-500.0,0.00015383,2]
[422919431,1779627038000,-500.0,0.00015383,2]
[422919421,1779627038000,-500.0,0.00015383,2]
[422919416,1779627038000,-161.73758927,0.00015184,2]
[422919417,1779627038000,-713.05546266,0.000152,2]
[422919412,1779627038000,-1165.0,0.00014751,2]
[422919419,1779627038000,-269.96331545,0.00015343,2]
[422919411,1779627038000,-420.0,0.000147,2]
[422919414,1779627038000,-2321.82685657,0.00015,2]
[422919413,1779627038000,-713.05546266,0.00015,2]
[422919408,1779627038000,-359.0,0.00013411,2]
[422919418,1779627038000,-713.05546266,0.000153,2]
[422919410,1779627038000,-1000.0,0.00014277,2]
[422919409,1779627038000,-177.39731573,0.00013699,7]
[422919405,1779627038000,-500.0,0.00013411,2]
[422919401,1779627038000,-1200.0,0.0001341,2]
[422919406,1779627038000,-500.0,0.00013411,2]
[422919400,1779627038000,-228.78247072,0.00013343,2]
[422919403,1779627038000,-300.0,0.0001341,2]
[422919415,1779627038000,-269.79961,0.00015068,2]
[422919428,1779627038000,-500.0,0.00015383,2]
[422919432,1779627038000,-557.34018028,0.00015383,2]
[422919440,1779627038000,-1372.43990019,0.00015385,2]
[422919462,1779627038000,-44914.1083351,0.00015386,2]
[422919461,1779627038000,-1820.41977891,0.00015385,2]
[422919463,1779627038000,-1842.71690646,0.00015386,2]
[422919458,1779627038000,-1475.37289272,0.00015385,2]
[422919460,1779627038000,-1820.41977891,0.00015385,2]
[422919459,1779627038000,-1475.37289272,0.00015385,2]
[422919450,1779627038000,-1475.37289272,0.00015385,2]
[422919449,1779627038000,-1475.37289272,0.00015385,2]
[422919452,1779627038000,-1475.37289272,0.00015385,2]
[422919451,1779627038000,-1475.37289272,0.00015385,2]
[422919448,1779627038000,-1372.43990019,0.00015385,2]
[422919446,1779627038000,-1372.43990019,0.00015385,2]
[422919457,1779627038000,-1475.37289272,0.00015385,2]
[422919456,1779627038000,-1475.37289272,0.00015385,2]
[422919455,1779627038000,-1475.37289272,0.00015385,2]
[422919454,1779627038000,-1475.37289272,0.00015385,2]
[422919453,1779627038000,-1475.37289272,0.00015385,2]
[422919447,1779627038000,-1372.43990019,0.00015385,2]
[422919443,1779627038000,-1372.43990019,0.00015385,2]
[422919442,1779627038000,-1372.43990019,0.00015385,2]
[422919438,1779627038000,-1372.43990019,0.00015385,2]
[422919444,1779627038000,-1372.43990019,0.00015385,2]
[422919439,1779627038000,-1372.43990019,0.00015385,2]
[422919445,1779627038000,-1372.43990019,0.00015385,2]
[422919437,1779627038000,-1372.43990019,0.00015385,2]
[422919441,1779627038000,-1372.43990019,0.00015385,2]
[422919436,1779627038000,-1372.43990019,0.00015385,2]
[422919435,1779627038000,-500.0,0.00015384,2]
[422919434,1779627038000,-218.61494746,0.00015383,2]
[422919464,1779627038000,-561.30065753,0.00015386,2]
[422919424,1779627038000,-500.0,0.00015383,2]
[422919497,1779627040000,-337.30774106,0.00015386,2]
[422919500,1779627040000,-981.08142789,0.00015386,2]
[422919825,1779627043000,-5015.93436883,0.00015386,2]
[422919824,1779627043000,-152.0,0.00013399,7]
[422919830,1779627043000,-23712.20222256,0.00015386,2]
[422919875,1779627046000,-5000.0,0.00015232,2]
[422919877,1779627046000,-5000.0,0.00015386,2]
[422919876,1779627046000,-41986.84621761,0.00015386,2]
[422919897,1779627729000,-5000.0,0.00013351,2]
[422919898,1779627746000,-317.11159534,0.00013427,7]
[422919899,1779627763000,-306.68858302,0.00013427,7]
[422919905,1779627780000,-193.21536577,0.00013427,7]
[422919926,1779628233000,-417.15766414,0.00013117,2]
[422919927,1779628233000,-5000.0,0.00013217,2]
[422919929,1779628233000,-158.55579767,0.00013444,7]
[422919930,1779628233000,-153.34429151,0.00013444,7]
[422919928,1779628233000,-227.71134394,0.00013397,2]
[422919931,1779628233000,-153.36157109,0.00013444,7]
[422919945,1779628234000,-285.22218506,0.00015,2]
[422919946,1779628234000,-215.839688,0.00015068,2]
[422919944,1779628234000,-1200.0,0.00014639,2]
[422919943,1779628234000,-300.0,0.00014638,2]
[422919941,1779628234000,-300.0,0.00014638,2]
[422919940,1779628234000,-300.0,0.00014638,2]
[422919938,1779628234000,-326.36947433,0.00013927,7]
[422919932,1779628234000,-151.40182946,0.00013527,7]
[422919937,1779628234000,-246.11134016,0.00013927,7]
[422919935,1779628234000,-306.72314218,0.00013727,7]
[422919936,1779628234000,-1200.0,0.00013926,2]
[422919934,1779628234000,-163.18473717,0.00013699,7]
[422919933,1779628234000,-155.22610294,0.00013527,7]
[422919942,1779628234000,-300.0,0.00014638,2]
[422919939,1779628234000,-1000.0,0.00013984,2]
[422919949,1779628234000,-1092.05059033,0.00015184,2]
[422919950,1779628234000,-1092.05059033,0.00015184,2]
[422919947,1779628234000,-271.84317782,0.00015086,2]
[422919959,1779628234000,-1092.05059033,0.00015184,2]
[422919961,1779628234000,-302.0683275,0.00015184,2]
[422919955,1779628234000,-1092.05059033,0.00015184,2]
[422919963,1779628234000,-1092.05059033,0.00015184,2]
[422919960,1779628234000,-1092.05059033,0.00015184,2]
[422919958,1779628234000,-1092.05059033,0.00015184,2]
[422919957,1779628234000,-1092.05059033,0.00015184,2]
[422919964,1779628234000,-1092.05059033,0.00015184,2]
[422919954,1779628234000,-1092.05059033,0.00015184,2]
[422919962,1779628234000,-1092.05059033,0.00015184,2]
[422919965,1779628234000,-10300.4865283,0.00015185,2]
[422919952,1779628234000,-1092.05059033,0.00015184,2]
[422919948,1779628234000,-703.9793024,0.00015101,2]
[422919953,1779628234000,-1092.05059033,0.00015184,2]
[422919951,1779628234000,-1092.05059033,0.00015184,2]
[422919956,1779628234000,-1092.05059033,0.00015184,2]
[422920007,1779628238000,-5000.0,0.00015033,2]
[422920011,1779628238000,-1600.67691427,0.00015185,2]
[422920009,1779628238000,-37384.58266981,0.00015185,2]
[422920015,1779628238000,-20665.42471379,0.00015185,2]
[422920020,1779628238000,-1853.98740782,0.00015185,2]
[422920013,1779628238000,-42772.01148746,0.00015185,2]
[422920087,1779628240000,-15769.96542241,0.00015185,2]
[422920099,1779628241000,-7620.04489753,0.00015185,2]
[422920097,1779628241000,-408.87603072,0.00015185,2]
[422920098,1779628241000,-304.0,0.00015185,2]
[422920128,1779628243000,-382.74849313,0.00015185,2]
[422920127,1779628243000,-1990.36528009,0.00015185,2]
[422920131,1779628247000,-7394.18664122,0.00015185,2]
[422920162,1779629068000,-152.0,8.219e-05,7]
[422920163,1779629076000,165.94094775,0.00017402,120]
[422920164,1779629090000,-27.00146912,8.219e-05,7]
[422920165,1779629143000,-184.98176395,8.245e-05,7]
[422920167,1779629196000,-151.0,8.219e-05,7]
[422920168,1779629217000,-32.77661831,8.219e-05,7]
[422920174,1779629232000,-228.83753317,8.357e-05,7]
[422920175,1779629232000,-108.86948561,8.357e-05,7]
[422920173,1779629232000,-222.17067331,8.357e-05,7]
[422920172,1779629232000,-367.55323661,8.245e-05,7]
[422920171,1779629232000,-355.45804144,8.245e-05,7]
[422920169,1779629232000,-260.18455655,8.232e-05,2]
[422920170,1779629232000,-363.09737596,8.245e-05,7]
[422920176,1779629270000,-154.75,8.219e-05,7]
[422920177,1779629278000,171.77050284,0.00016998,120]
[422920178,1779629290000,-26.79868798,8.219e-05,7]
[422920180,1779629344000,-325.9692126,8.245e-05,7]
[422920194,1779629349000,-300.0,9.462e-05,2]
[422920190,1779629349000,-300.0,8.884e-05,2]
[422920195,1779629349000,-300.0,9.462e-05,2]
[422920193,1779629349000,-716.00587648,9.067e-05,7]
[422920192,1779629349000,-1200.0,9.066e-05,2]
[422920196,1779629349000,-300.0,9.462e-05,2]
[422920189,1779629349000,-584.97438913,8.795e-05,2]
[422920182,1779629349000,-236.97202762,8.245e-05,7]
[422920183,1779629349000,-249.13345263,8.357e-05,7]
[422920187,1779629349000,-457.67506635,8.783e-05,7]
[422920185,1779629349000,-243.724752,8.539e-05,7]
[422920186,1779629349000,-444.34134662,8.783e-05,7]
[422920184,1779629349000,-369.9635279,8.529e-05,7]
[422920181,1779629349000,-37.12816336,8.245e-05,7]
[422920188,1779629349000,-537.00440736,8.783e-05,7]
[422920198,1779629349000,-420.0,9.772e-05,2]
[422920191,1779629349000,-5000.0,8.885e-05,2]
[422920197,1779629349000,-192.83811962,9.717e-05,7]
[422920199,1779629349000,-1680.0,9.973e-05,2]
[422920212,1779629349000,-500.0,0.00010365,2]
[422920213,1779629349000,-257.33237174,0.00010365,2]
[422920210,1779629349000,-500.0,0.00010365,2]
[422920211,1779629349000,-500.0,0.00010365,2]
[422920208,1779629349000,-500.0,0.00010365,2]
[422920209,1779629349000,-500.0,0.00010365,2]
[422920214,1779629349000,-500.0,0.00010365,2]
[422920206,1779629349000,-500.0,0.00010365,2]
[422920204,1779629349000,-185.58313279,0.00010365,2]
[422920205,1779629349000,-500.0,0.00010365,2]
[422920203,1779629349000,-250.0,0.00010282,2]
[422920201,1779629349000,-385.67623925,0.00010143,7]
[422920202,1779629349000,-307.01777672,0.00010232,2]
[422920200,1779629349000,-703.27599039,0.0001,7]
[422920207,1779629349000,-500.0,0.00010365,2]
[422920229,1779629350000,-384.56,0.00013355,2]
[422920226,1779629350000,-648.0,0.0001097,2]
[422920227,1779629350000,-243.63889103,0.00011027,7]
[422920225,1779629350000,-587.0,0.0001075,2]
[422920224,1779629350000,-578.51435887,0.00010427,7]
[422920222,1779629350000,-500.0,0.00010365,2]
[422920217,1779629350000,-500.0,0.00010365,2]
[422920220,1779629350000,-500.0,0.00010365,2]
[422920219,1779629350000,-199.29323495,0.00010365,2]
[422920218,1779629350000,-500.0,0.00010365,2]
[422920215,1779629350000,-500.0,0.00010365,2]
[422920216,1779629350000,-500.0,0.00010365,2]
[422920228,1779629350000,-353.8509969,0.00012232,2]
[422920221,1779629350000,-330.84891821,0.00010365,2]
[422920230,1779629350000,-152.0,0.00013396,7]
[422920223,1779629350000,-3917.6436165,0.00010367,2]
[422920232,1779629350000,-1000.0,0.00013699,2]
[422920231,1779629350000,-600.0,0.00013664,2]
[422920245,1779629350000,-936.22270516,0.00013993,2]
[422920247,1779629350000,-1089.89206875,0.00013993,2]
[422920244,1779629350000,-936.22270516,0.00013993,2]
[422920240,1779629350000,-936.22270516,0.00013993,2]
[422920243,1779629350000,-936.22270516,0.00013993,2]
[422920241,1779629350000,-936.22270516,0.00013993,2]
[422920242,1779629350000,-936.22270516,0.00013993,2]
[422920238,1779629350000,-936.22270516,0.00013993,2]
[422920239,1779629350000,-936.22270516,0.00013993,2]
[422920236,1779629350000,-936.22270516,0.00013993,2]
[422920237,1779629350000,-936.22270516,0.00013993,2]
[422920234,1779629350000,-305.69940763,0.00013944,7]
[422920235,1779629350000,-936.22270516,0.00013993,2]
[422920233,1779629350000,-152.84970381,0.00013699,7]
[422920246,1779629350000,-1089.89206875,0.00013993,2]
[422920252,1779629351000,-1089.89206875,0.00013993,2]
[422920248,1779629351000,-1089.89206875,0.00013993,2]
[422920249,1779629351000,-1089.89206875,0.00013993,2]
[422920251,1779629351000,-1089.89206875,0.00013993,2]
[422920254,1779629351000,-1089.89206875,0.00013993,2]
[422920250,1779629351000,-1089.89206875,0.00013993,2]
[422920253,1779629351000,-1089.89206875,0.00013993,2]
[422920257,1779629351000,-1173.23675634,0.00013993,2]
[422920256,1779629351000,-1173.23675634,0.00013993,2]
[422920258,1779629351000,-50000.0,0.00013994,2]
[422920259,1779629351000,-9966.07771141,0.00014,2]
[422920255,1779629351000,-1173.23675634,0.00013993,2]
[422920260,1779629354000,-16280.72323318,0.00014,2]
[422920261,1779629364000,-24941.34938793,0.00014,2]
[422920264,1779629367000,-16.05594475,8.539e-05,7]
[422920262,1779629367000,-157.98135175,8.255e-05,7]
[422920263,1779629367000,-315.9627035,8.539e-05,7]
[422920265,1779629369000,-165.49274323,8.539e-05,7]
[422920266,1779629369000,-307.97464854,0.00013993,2]
[422920268,1779629369000,-107910.23239625,0.00014,2]
[422920267,1779629369000,-37819.29238225,0.00014,2]
[422920269,1779629374000,-19218.90911892,0.00014,2]
[422920330,1779629432000,-756.1004725,0.00014468,2]
[422920320,1779629432000,-756.1004725,0.00014468,2]
[422920311,1779629432000,-305.69940763,0.00013973,7]
[422920309,1779629432000,-152.84970381,0.00013699,7]
[422920313,1779629432000,-62698.57071642,0.00014,2]
[422920318,1779629432000,-600.0,0.00014279,2]
[422920315,1779629432000,-5000.0,0.00014,2]
[422920322,1779629432000,-756.1004725,0.00014468,2]
[422920324,1779629432000,-756.1004725,0.00014468,2]
[422920317,1779629432000,-400.68421708,0.00014232,2]
[422920326,1779629432000,-756.1004725,0.00014468,2]
[422920328,1779629432000,-756.1004725,0.00014468,2]
[422920362,1779629432000,-631.87264066,0.000149,2]
[422920332,1779629432000,-756.1004725,0.00014468,2]
[422920357,1779629432000,-889.79112224,0.00014875,2]
[422920353,1779629432000,-889.79112224,0.00014825,2]
[422920359,1779629432000,-23759.0481995,0.000149,2]
[422920355,1779629432000,-889.79112224,0.0001485,2]
[422920351,1779629432000,-889.79112228,0.000148,2]
[422920343,1779629432000,-5076.49540085,0.00014469,2]
[422920349,1779629432000,-400.2237837,0.00014794,2]
[422920345,1779629432000,-151.0,0.00014776,2]
[422920341,1779629432000,-2258.47865681,0.00014469,2]
[422920347,1779629432000,-151.9315249,0.00014776,2]
[422920339,1779629432000,-564.6196642,0.00014469,2]
[422920428,1779629441000,-296.6136905,0.00014468,2]
[422920424,1779629441000,-152.0,9.828e-05,7]
[422920426,1779629441000,-756.1004725,0.00014468,2]
[422920449,1779629441000,-600.0,0.00014756,2]
[422920447,1779629441000,-756.1004725,0.00014468,2]
[422920432,1779629441000,-459.486782,0.00014468,2]
[422920436,1779629441000,-756.1004725,0.00014468,2]
[422920443,1779629441000,-756.1004725,0.00014468,2]
[422920452,1779629441000,-77461.82797074,0.000149,2]
[422920445,1779629441000,-756.1004725,0.00014468,2]
[422920451,1779629441000,-3543.98310899,0.000149,2]
[422920439,1779629441000,-756.1004725,0.00014468,2]
[422920453,1779629441000,-4536.76065322,0.000149,2]
[422920441,1779629441000,-756.1004725,0.00014468,2]
[422920438,1779629441000,-756.1004725,0.00014468,2]
[422920491,1779629443000,-755.11298001,0.000149,2]
[422920518,1779629447000,-241.81299024,0.00010639,2]
[422920517,1779629447000,-500.0,0.00010365,2]
[422920522,1779629740000,7005.74288,0.00017808,120]
[422920537,1779629849000,-301.9341802,8.653e-05,7]
[422920538,1779629849000,-181.40022273,8.653e-05,7]
[422920536,1779629849000,-150.9670901,8.226e-05,7]
[422920563,1779629850000,-185.58313279,0.00010364,2]
[422920560,1779629850000,-300.0,0.00010364,2]
[422920559,1779629850000,-300.0,0.00010364,2]
[422920554,1779629850000,-300.0,9.866e-05,2]
[422920558,1779629850000,-300.0,0.00010364,2]
[422920555,1779629850000,-339.64334141,9.867e-05,7]
[422920556,1779629850000,-519.56838477,9.867e-05,7]
[422920557,1779629850000,-258.97417543,0.00010102,2]
[422920550,1779629850000,-513.17129943,9.617e-05,7]
[422920553,1779629850000,-1200.0,9.866e-05,2]
[422920552,1779629850000,-152.0,9.839e-05,7]
[422920549,1779629850000,-187.84848662,9.617e-05,7]
[422920547,1779629850000,-339.26935898,9.333e-05,7]
[422920548,1779629850000,-259.78419238,9.583e-05,7]
[422920544,1779629850000,-362.80044547,8.937e-05,7]
[422920546,1779629850000,-342.11419962,9.333e-05,7]
[422920545,1779629850000,-387.30356438,8.937e-05,7]
[422920542,1779629850000,-169.63467949,8.906e-05,7]
[422920561,1779629850000,-500.0,0.00010364,2]
[422920543,1779629850000,-452.90127031,8.937e-05,7]
[422920540,1779629850000,-3917.6436165,8.787e-05,2]
[422920541,1779629850000,-171.05709981,8.906e-05,7]
[422920551,1779629850000,-152.0,9.784e-05,7]
[422920564,1779629850000,-500.0,0.00010364,2]
[422920539,1779629850000,-182.73281514,8.653e-05,7]
[422920565,1779629850000,-500.0,0.00010364,2]
[422920588,1779629850000,-500.0,0.00010365,2]
[422920586,1779629850000,-500.0,0.00010365,2]
[422920587,1779629850000,-500.0,0.00010365,2]
[422920585,1779629850000,-500.0,0.00010364,2]
[422920584,1779629850000,-499.0,0.00010364,2]
[422920583,1779629850000,-500.0,0.00010364,2]
[422920582,1779629850000,-376.00134207,0.00010364,2]
[422920579,1779629850000,-500.0,0.00010364,2]
[422920580,1779629850000,-500.0,0.00010364,2]
[422920581,1779629850000,-382.11804864,0.00010364,2]
[422920575,1779629850000,-500.0,0.00010364,2]
[422920562,1779629850000,-500.0,0.00010364,2]
[422920577,1779629850000,-500.0,0.00010364,2]
[422920574,1779629850000,-500.0,0.00010364,2]
[422920567,1779629850000,-500.0,0.00010364,2]
[422920568,1779629850000,-500.0,0.00010364,2]
[422920569,1779629850000,-500.0,0.00010364,2]
[422920570,1779629850000,-500.0,0.00010364,2]
[422920566,1779629850000,-500.0,0.00010364,2]
[422920572,1779629850000,-257.33237174,0.00010364,2]
[422920571,1779629850000,-350.0,0.00010364,2]
[422920578,1779629850000,-500.0,0.00010364,2]
[422920576,1779629850000,-500.0,0.00010364,2]
[422920573,1779629850000,-500.0,0.00010364,2]
[422920604,1779629851000,-500.0,0.00010365,2]
[422920611,1779629851000,-500.0,0.00010365,2]
[422920609,1779629851000,-500.0,0.00010365,2]
[422920610,1779629851000,-500.0,0.00010365,2]
[422920608,1779629851000,-500.0,0.00010365,2]
[422920607,1779629851000,-500.20385964,0.00010365,2]
[422920606,1779629851000,-500.0,0.00010365,2]
[422920601,1779629851000,-500.0,0.00010365,2]
[422920603,1779629851000,-510.86593597,0.00010365,2]
[422920605,1779629851000,-500.0,0.00010365,2]
[422920595,1779629851000,-500.0,0.00010365,2]
[422920600,1779629851000,-500.0,0.00010365,2]
[422920597,1779629851000,-384.76808575,0.00010365,2]
[422920598,1779629851000,-500.0,0.00010365,2]
[422920599,1779629851000,-500.0,0.00010365,2]
[422920615,1779629851000,-500.0,0.00010365,2]
[422920596,1779629851000,-500.0,0.00010365,2]
[422920590,1779629851000,-500.51875377,0.00010365,2]
[422920593,1779629851000,-500.0,0.00010365,2]
[422920594,1779629851000,-500.0,0.00010365,2]
[422920591,1779629851000,-500.0,0.00010365,2]
[422920589,1779629851000,-500.0,0.00010365,2]
[422920602,1779629851000,-500.0,0.00010365,2]
[422920613,1779629851000,-500.0,0.00010365,2]
[422920620,1779629851000,-500.0,0.00010365,2]
[422920616,1779629851000,-500.0,0.00010365,2]
[422920639,1779629851000,-350.34889778,0.00010365,2]
[422920638,1779629851000,-500.0,0.00010365,2]
[422920632,1779629851000,-500.0,0.00010365,2]
[422920637,1779629851000,-500.0,0.00010365,2]
[422920633,1779629851000,-539.33979203,0.00010365,2]
[422920636,1779629851000,-420.21,0.00010365,2]
[422920635,1779629851000,-500.0,0.00010365,2]
[422920634,1779629851000,-500.0,0.00010365,2]
[422920629,1779629851000,-500.12252924,0.00010365,2]
[422920628,1779629851000,-500.0,0.00010365,2]
[422920631,1779629851000,-500.0,0.00010365,2]
[422920630,1779629851000,-500.0,0.00010365,2]
[422920627,1779629851000,-500.0,0.00010365,2]
[422920592,1779629851000,-500.60166429,0.00010365,2]
[422920626,1779629851000,-500.0,0.00010365,2]
[422920625,1779629851000,-500.0,0.00010365,2]
[422920624,1779629851000,-500.0,0.00010365,2]
[422920622,1779629851000,-500.0,0.00010365,2]
[422920621,1779629851000,-500.0,0.00010365,2]
[422920618,1779629851000,-500.0,0.00010365,2]
[422920619,1779629851000,-500.23716352,0.00010365,2]
[422920617,1779629851000,-500.0,0.00010365,2]
[422920614,1779629851000,-500.0,0.00010365,2]
[422920612,1779629851000,-500.0,0.00010365,2]
[422920623,1779629851000,-500.0,0.00010365,2]
[422920663,1779630062000,10000.0,0.00017808,120]
[422920664,1779630069000,10000.0,0.00017808,120]
[422920665,1779630085000,9553.0,0.00017808,120]
[422920666,1779630182000,10000.0,0.00017808,120]
[422920667,1779630193000,-584.97438913,0.00010055,2]
[422920668,1779630247000,-267.01206739,0.00010106,2]
[422920670,1779630281000,-192.83811962,9.517e-05,7]
[422920674,1779630281000,-243.724752,0.00010327,7]
[422920669,1779630281000,-2670.0738311,9.329e-05,2]
[422920671,1779630281000,-385.67623925,9.943e-05,7]
[422920672,1779630281000,-243.63889103,0.00010127,7]
[422920673,1779630281000,-578.51435887,0.00010227,7]
[422920675,1779630300000,-300.0,0.00010363,2]
[422920686,1779630337000,-500.0,0.00010364,2]
[422920693,1779630337000,-149.65110222,0.00010365,2]
[422920694,1779630337000,-500.0,0.00010365,2]
[422920691,1779630337000,-165.73,0.00010364,2]
[422920689,1779630337000,-599.52,0.00010364,2]
[422920688,1779630337000,-500.0,0.00010364,2]
[422920685,1779630337000,-507.12,0.00010364,2]
[422920678,1779630337000,-300.0,0.00010363,2]
[422920683,1779630337000,-500.0,0.00010364,2]
[422920682,1779630337000,-500.0,0.00010364,2]
[422920684,1779630337000,-445.0,0.00010364,2]
[422920680,1779630337000,-300.0,0.00010363,2]
[422920690,1779630337000,-500.0,0.00010364,2]
[422920679,1779630337000,-300.0,0.00010363,2]
[422920677,1779630337000,-300.0,0.00010363,2]
[422920676,1779630337000,-1200.0,0.00010362,2]
[422920681,1779630337000,-500.0,0.00010364,2]
[422920692,1779630337000,-500.0,0.00010364,2]
[422920687,1779630337000,-500.0,0.00010364,2]
[422920695,1779630337000,-500.0,0.00010365,2]
[422920696,1779630337000,-500.0,0.00010365,2]
[422920714,1779630337000,-500.0,0.00010365,2]
[422920712,1779630337000,-500.29625024,0.00010365,2]
[422920713,1779630337000,-500.0,0.00010365,2]
[422920711,1779630337000,-500.0,0.00010365,2]
[422920709,1779630337000,-490.81482499,0.00010365,2]
[422920707,1779630337000,-500.28130502,0.00010365,2]
[422920705,1779630337000,-618.85540538,0.00010365,2]
[422920708,1779630337000,-500.0,0.00010365,2]
[422920710,1779630337000,-500.2002204,0.00010365,2]
[422920704,1779630337000,-500.0,0.00010365,2]
[422920703,1779630337000,-500.0,0.00010365,2]
[422920702,1779630337000,-500.17534177,0.00010365,2]
[422920701,1779630337000,-500.0,0.00010365,2]
[422920697,1779630337000,-500.28062496,0.00010365,2]
[422920700,1779630337000,-500.22864411,0.00010365,2]
[422920699,1779630337000,-166.52133704,0.00010365,2]
[422920706,1779630337000,-500.18808399,0.00010365,2]
[422920698,1779630337000,-500.0,0.00010365,2]